fUSD/lending_fUSD_20240119
["ID","MTS","AMOUNT","RATE_DAILY","PERIOD"]
[312216184,1705690244258,-587.7,0.00025378,2]
[312216185,1705690244268,-500.0,0.00025378,2]
[312216186,1705690244278,-500.0,0.00025378,2]
[312216187,1705690244288,-500.0,0.00025378,2]
[312216188,1705690244299,-500.0,0.00025378,2]
[312216189,1705690244308,-500.0,0.00025378,2]
[312216190,1705690244318,-500.0,0.00025378,2]
[312216191,1705690244327,-500.0,0.00025378,2]
[312216192,1705690244337,-895.35,0.00025378,2]
[312216193,1705690244347,-500.0,0.00025378,5]
[312216194,1705690244358,-210.0,0.00025411,2]
[312216195,1705690244367,-153.79,0.00025455,2]
[312216196,1705690244377,-666.09,0.00025479,2]
[312216197,1705690244386,-1030.44,0.00025479,2]
[312216198,1705690244395,-500.0,0.00025479,2]
[312216199,1705690244405,-4216.76,0.00025479,2]
[312216200,1705690244414,-500.0,0.00025479,2]
[312216201,1705690244425,-500.0,0.00025479,2]
[312216202,1705690244435,-500.0,0.00025479,2]
[312216203,1705690244443,-500.0,0.00025479,2]
[312216204,1705690244453,-739.1,0.00025479,2]
[312216205,1705690244462,-821.16,0.00025479,2]
[312216206,1705690244471,-500.0,0.00025479,2]
[312216207,1705690244480,-1000.0,0.00025553,2]
[312216208,1705690244493,-153.79,0.00025645,2]
[312216209,1705690244502,-500.0,0.00025652,7]
[312216210,1705690244512,-500.0,0.00025652,2]
[312216211,1705690244521,-280.23087974,0.00025652,2]
[312216212,1705690244531,-500.0,0.00025652,2]
[312216213,1705690244541,-500.0,0.00025652,2]
[312216214,1705690244551,-500.0,0.00025652,2]
[312216215,1705690244560,-500.0,0.00025652,2]
[312216216,1705690244571,-500.0,0.00025652,2]
[312216217,1705690244580,-647.99,0.00025652,2]
[312216218,1705690244590,-500.0,0.00025652,2]
[312216219,1705690244600,-384.19,0.00025652,2]
[312216220,1705690244613,-500.0,0.00025652,2]
[312216221,1705690244623,-987.94,0.00025652,2]
[312216222,1705690244635,-711.7,0.00025652,2]
[312216223,1705690244645,-875.96,0.00025652,2]
[312216224,1705690244656,-500.0,0.00025652,2]
[312216225,1705690244666,-500.0,0.00025652,2]
[312216226,1705690244676,-500.0,0.00025652,2]
[312216227,1705690244685,-500.0,0.00025652,2]
[312216228,1705690244695,-614.35,0.00025652,2]
[312216229,1705690244704,-500.0,0.00025652,2]
[312216230,1705690244713,-500.0,0.00025652,2]
[312216231,1705690244722,-502.66,0.00025652,2]
[312216232,1705690244732,-500.0,0.00025652,2]
[312216233,1705690244744,-554.25,0.00025652,2]
[312216234,1705690244754,-500.0,0.00025652,2]
[312216235,1705690244763,-500.0,0.00025652,2]
[312216236,1705690244772,-771.2,0.00025652,2]
[312216237,1705690244781,-500.0,0.00025652,2]
[312216238,1705690244791,-627.07,0.00025652,2]
[312216239,1705690244800,-500.0,0.00025652,2]
[312216240,1705690244810,-816.34,0.00025652,2]
[312216241,1705690244821,-587.7,0.00025652,2]
[312216242,1705690244830,-500.0,0.00025652,2]
[312216243,1705690244840,-500.0,0.00025652,2]
[312216244,1705690244852,-500.0,0.00025652,2]
[312216245,1705690244861,-500.0,0.00025652,2]
[312216246,1705690244871,-500.0,0.00025652,2]
[312216247,1705690244880,-895.35,0.00025652,2]
[312216248,1705690244889,-500.0,0.00025652,5]
[312216249,1705690244899,-489.6982,0.00025653,2]
[312216250,1705690244909,-4079.5137,0.00025653,2]
[312216251,1705690244918,-161.35981865,0.000257,2]
[312216252,1705690244927,-666.09,0.00025753,2]
[312216253,1705690244936,-1030.44,0.00025753,2]
[312216254,1705690244946,-500.0,0.00025753,2]
[312216255,1705690244955,-4216.76,0.00025753,2]
[312216256,1705690244964,-500.0,0.00025753,2]
[312216257,1705690244974,-500.0,0.00025753,2]
[312216258,1705690244983,-500.0,0.00025753,2]
[312216259,1705690244994,-500.0,0.00025753,2]
[312216260,1705690245004,-739.1,0.00025753,2]
[312216261,1705690245013,-821.16,0.00025753,2]
[312216262,1705690245023,-500.0,0.00025753,2]
[312216263,1705690245032,-1255.0842,0.00025827,2]
[312216264,1705690245042,-153.79,0.00025835,2]
[312216265,1705690245052,-2368.60309671,0.00025849,2]
[312216266,1705690245061,-496.0,0.0002589,2]
[312216267,1705690245072,-500.0,0.00025925,2]
[312216268,1705690245082,-191.36961502,0.00025926,2]
[312216269,1705690245093,-500.0,0.00025926,2]
[312216270,1705690245102,-500.0,0.00025926,2]
[312216271,1705690245112,-500.0,0.00025926,2]
[312216272,1705690245122,-647.99,0.00025926,2]
[312216273,1705690245131,-500.0,0.00025926,2]
[312216274,1705690245140,-987.94,0.00025926,2]
[312216275,1705690245150,-711.7,0.00025926,2]
[312216276,1705690245159,-500.0,0.00025926,2]
[312216277,1705690245171,-875.96,0.00025926,2]
[312216278,1705690245180,-500.0,0.00025926,2]
[312216279,1705690245189,-500.0,0.00025926,2]
[312216280,1705690245198,-500.0,0.00025926,2]
[312216281,1705690245207,-500.0,0.00025926,2]
[312216282,1705690245216,-500.0,0.00025926,2]
[312216283,1705690245225,-500.0,0.00025926,2]
[312216284,1705690245234,-614.35,0.00025926,2]
[312216285,1705690245245,-500.0,0.00025926,2]
[312216286,1705690245254,-500.0,0.00025926,2]
[312216287,1705690245264,-502.66,0.00025926,2]
[312216288,1705690245273,-500.0,0.00025926,2]
[312216289,1705690245282,-500.0,0.00025926,2]
[312216290,1705690245291,-500.0,0.00025926,2]
[312216291,1705690245300,-500.0,0.00025926,2]
[312216292,1705690245309,-771.2,0.00025926,2]
[312216293,1705690245318,-500.0,0.00025926,2]
[312216294,1705690245328,-500.0,0.00025926,2]
[312216295,1705690245338,-500.0,0.00025926,2]
[312216296,1705690245347,-627.07,0.00025926,2]
[312216297,1705690245356,-500.0,0.00025926,2]
[312216298,1705690245366,-500.0,0.00025926,2]
[312216299,1705690245375,-500.0,0.00025926,2]
[312216300,1705690245385,-1157.6,0.00025926,2]
[312216301,1705690245394,-816.34,0.00025926,2]
[312216302,1705690245403,-500.0,0.00025926,2]
[312216303,1705690245412,-500.0,0.00025926,2]
[312216304,1705690245422,-500.0,0.00025926,2]
[312216305,1705690245431,-587.7,0.00025926,2]
[312216306,1705690245440,-500.0,0.00025926,2]
[312216307,1705690245450,-500.0,0.00025926,2]
[312216308,1705690245459,-500.0,0.00025926,2]
[312216309,1705690245469,-500.0,0.00025926,2]
[312216310,1705690245478,-500.0,0.00025926,2]
[312216311,1705690245488,-500.0,0.00025926,2]
[312216312,1705690245497,-895.35,0.00025926,2]
[312216313,1705690245505,-2000.0,0.00025927,3]
[312216314,1705690245514,-256.86,0.00025989,2]
[312216315,1705690245523,-650.0,0.00026,2]
[312216316,1705690245533,-500.0,0.00026,2]
[312216317,1705690245542,-153.79,0.00026025,2]
[312216318,1705690245551,-155.48285035,0.00026025,2]
[312216319,1705690245561,-666.09,0.00026027,2]
[312216320,1705690245570,-1030.44,0.00026027,2]
[312216321,1705690245579,-500.0,0.00026027,2]
[312216322,1705690245588,-4216.76,0.00026027,2]
[312216323,1705690245597,-500.0,0.00026027,2]
[312216324,1705690245607,-500.0,0.00026027,2]
[312216325,1705690245616,-500.0,0.00026027,2]
[312216326,1705690245625,-500.0,0.00026027,2]
[312216328,1705690245634,-739.1,0.00026027,2]
[312216329,1705690245643,-821.16,0.00026027,2]
[312216330,1705690245652,-500.0,0.00026027,2]
[312216331,1705690245661,-157.45,0.00026077,2]
[312216332,1705690245670,-209.80545009,0.00026078,2]
[312216333,1705690245679,-500.0,0.000262,2]
[312216334,1705690245688,-500.0,0.000262,2]
[312216335,1705690245697,-500.0,0.000262,2]
[312216336,1705690245706,-647.99,0.000262,2]
[312216337,1705690245716,-500.0,0.000262,2]
[312216338,1705690245725,-987.94,0.000262,2]
[312216339,1705690245733,-711.7,0.000262,2]
[312216340,1705690245745,-875.96,0.000262,2]
[312216341,1705690245754,-500.0,0.000262,2]
[312216343,1705690245763,-500.0,0.000262,2]
[312216345,1705690245773,-500.0,0.000262,2]
[312216347,1705690245782,-614.35,0.000262,2]
[312216349,1705690245792,-500.0,0.000262,2]
[312216351,1705690245801,-500.0,0.000262,2]
[312216353,1705690245810,-502.66,0.000262,2]
[312216354,1705690245819,-500.0,0.000262,2]
[312216355,1705690245829,-500.0,0.000262,2]
[312216356,1705690245838,-500.0,0.000262,2]
[312216357,1705690245848,-771.2,0.000262,2]
[312216358,1705690245858,-500.0,0.000262,2]
[312216359,1705690245867,-500.0,0.000262,2]
[312216360,1705690245877,-500.0,0.000262,2]
[312216361,1705690245887,-627.07,0.000262,2]
[312216362,1705690245896,-500.0,0.000262,2]
[312216363,1705690245906,-500.0,0.000262,2]
[312216364,1705690245915,-500.0,0.000262,2]
[312216365,1705690245925,-816.34,0.000262,2]
[312216366,1705690245934,-1157.6,0.000262,2]
[312216367,1705690245943,-500.0,0.000262,2]
[312216368,1705690245952,-587.7,0.000262,2]
[312216369,1705690245961,-500.0,0.000262,2]
[312216370,1705690245970,-500.0,0.000262,2]
[312216371,1705690245979,-500.0,0.000262,2]
[312216372,1705690245990,-500.0,0.000262,2]
[312216373,1705690245999,-895.35,0.000262,2]
[312216374,1705690246008,-153.79,0.00026215,2]
[312216375,1705690246018,-161.35981865,0.00026225,2]
[312216376,1705690246027,-666.09,0.00026301,2]
[312216377,1705690246036,-500.0,0.00026301,2]
[312216378,1705690246046,-4216.76,0.00026301,2]
[312216379,1705690246055,-500.0,0.00026301,2]
[312216380,1705690246064,-500.0,0.00026301,2]
[312216381,1705690246074,-500.0,0.00026301,2]
[312216382,1705690246085,-469.48994292,0.00026301,2]
[312216383,1705690246099,-739.1,0.00026301,2]
[312216384,1705690246109,-821.16,0.00026301,2]
[312216385,1705690246119,-500.0,0.00026301,2]
[312216386,1705690246128,-347.68,0.0002631,2]
[312216387,1705690246138,-166.98,0.0002633,2]
[312216388,1705690246147,-153.79,0.00026405,2]
[312216389,1705690246157,-500.0,0.00026474,2]
[312216390,1705690246165,-500.0,0.00026474,2]
[312216391,1705690246176,-500.0,0.00026474,2]
[312216392,1705690246185,-647.99,0.00026474,2]
[312216393,1705690246194,-500.0,0.00026474,2]
[312216394,1705690246203,-987.94,0.00026474,2]
[312216395,1705690246214,-711.7,0.00026474,2]
[312216396,1705690246227,-875.96,0.00026474,2]
[312216397,1705690246238,-170.71581051,0.00026474,2]
[312216398,1705690246247,-500.0,0.00026474,2]
[312216399,1705690246257,-500.0,0.00026474,2]
[312216400,1705690246267,-614.35,0.00026474,2]
[312216401,1705690246276,-500.0,0.00026474,2]
[312216402,1705690246285,-500.0,0.00026474,2]
[312216403,1705690246295,-502.66,0.00026474,2]
[312216404,1705690246305,-500.0,0.00026474,2]
[312216405,1705690246314,-500.0,0.00026474,2]
[312216406,1705690246323,-771.2,0.00026474,2]
[312216407,1705690246333,-265.72962215,0.00026474,2]
[312216408,1705690246345,-500.0,0.00026474,2]
[312216409,1705690246356,-500.0,0.00026474,2]
[312216410,1705690246366,-627.07,0.00026474,2]
[312216411,1705690246376,-500.0,0.00026474,2]
[312216412,1705690246386,-500.0,0.00026474,2]
[312216413,1705690246397,-816.34,0.00026474,2]
[312216414,1705690246408,-1157.6,0.00026474,2]
[312216415,1705690246418,-500.0,0.00026474,2]
[312216416,1705690246428,-587.7,0.00026474,2]
[312216417,1705690246438,-373.6415567,0.00026474,2]
[312216418,1705690246449,-500.0,0.00026474,2]
[312216419,1705690246459,-500.0,0.00026474,2]
[312216420,1705690246468,-500.0,0.00026474,2]
[312216421,1705690246478,-895.35,0.00026474,2]
[312216422,1705690246491,-200.0,0.00026569,2]
[312216423,1705690246502,-666.09,0.00026575,2]
[312216424,1705690246512,-500.0,0.00026575,2]
[312216425,1705690246522,-4199.56886878,0.00026575,2]
[312216426,1705690246616,-17.19113122,0.00026575,2]
[312216427,1705690246626,-368.17779294,0.00026575,2]
[312216428,1705690246685,-131.82220706,0.00026575,2]
[312216429,1705690246695,-500.0,0.00026575,2]
[312216430,1705690246704,-500.0,0.00026575,2]
[312216431,1705690246714,-739.1,0.00026575,2]
[312216432,1705690246724,-821.16,0.00026575,2]
[312216433,1705690246733,-500.0,0.00026575,2]
[312216434,1705690246748,-19458.2,0.00026575,2]
[312216435,1705690246758,-153.79,0.00026595,2]
[312216436,1705690246767,-504.0,0.00026679,2]
[312216437,1705690246778,-500.0,0.00026748,2]
[312216438,1705690246787,-500.0,0.00026748,2]
[312216439,1705690246797,-500.0,0.00026748,2]
[312216440,1705690246807,-647.99,0.00026748,2]
[312216441,1705690246817,-500.0,0.00026748,2]
[312216442,1705690246827,-711.7,0.00026748,2]
[312216443,1705690246836,-875.96,0.00026748,2]
[312216444,1705690246846,-500.0,0.00026748,2]
[312216445,1705690246855,-184.14,0.00026748,2]
[312216446,1705690246865,-614.35,0.00026748,2]
[312216447,1705690246874,-500.0,0.00026748,2]
[312216448,1705690246883,-500.0,0.00026748,2]
[312216449,1705690246893,-502.66,0.00026748,2]
[312216450,1705690246902,-200.4815138,0.00026748,2]
[312216451,1705690246913,-500.0,0.00026748,2]
[312216452,1705690246924,-771.2,0.00026748,2]
[312216453,1705690246934,-500.0,0.00026748,2]
[312216454,1705690246944,-500.0,0.00026748,2]
[312216455,1705690246956,-627.07,0.00026748,2]
[312216456,1705690246966,-500.0,0.00026748,2]
[312216457,1705690246976,-500.0,0.00026748,2]
[312216458,1705690246986,-816.34,0.00026748,2]
[312216459,1705690247000,-1157.6,0.00026748,2]
[312216460,1705690247010,-500.0,0.00026748,2]
[312216461,1705690247020,-587.7,0.00026748,2]
[312216462,1705690247030,-500.0,0.00026748,2]
[312216463,1705690247042,-366.42,0.00026748,2]
[312216464,1705690247053,-500.0,0.00026748,2]
[312216465,1705690247062,-895.35,0.00026748,2]
[312216466,1705690247073,-161.35981865,0.00026749,2]
[312216467,1705690247083,-167.0,0.00026791,2]
[312216468,1705690247092,-666.09,0.00026849,2]
[312216469,1705690247105,-500.0,0.00026849,2]
[312216470,1705690247115,-3947.78069205,0.00026849,2]
[312216471,1705690247397,-14506.75996046,0.00024499,2]
[312216472,1705690247409,-268.97930795,0.00026849,2]
[312216473,1705690247418,-500.0,0.00026849,2]
[312216474,1705690247427,-500.0,0.00026849,2]
[312216475,1705690247437,-500.0,0.00026849,2]
[312216476,1705690247446,-739.1,0.00026849,2]
[312216477,1705690247456,-821.16,0.00026849,2]
[312216478,1705690247466,-500.0,0.00026849,2]
[312216480,1705690247475,-300.0,0.000269,9]
[312216482,1705690247485,-147.83960528,0.00026967,2]
[312216483,1705690247501,-109.02039472,0.00026967,2]
[312216484,1705690247509,-600.0,0.00027,3]
[312216485,1705690247519,-155.0,0.00027,2]
[312216486,1705690247527,-866.70748759,0.00027,2]
[312216487,1705690247538,-4133.29251241,0.00027,2]
[312216488,1705690247547,-19.434203,0.00027022,2]
[312216489,1705690262215,398.30267894,0.00021782,2]
[312216490,1705690262241,2000.0,0.00021782,2]
[312216491,1705690262268,2000.0,0.00021782,2]
[312216492,1705690262289,2000.0,0.00021782,2]
[312216493,1705690262311,2000.0,0.00021782,2]
[312216494,1705690262332,2000.0,0.00021782,2]
[312216495,1705690262354,1544.07900327,0.00021782,2]
[312216496,1705690262375,2000.0,0.00021782,2]
[312216497,1705690262395,2000.0,0.00021782,2]
[312216498,1705690262416,1147.56121481,0.00021782,2]
[312216499,1705690359395,318.18708777,0.00021782,2]
[312216500,1705690379126,200.30266315,0.00022,2]
[312216501,1705690446545,333.94903427,0.0002,2]
[312216502,1705690446567,1261.0,0.0002,2]
[312216503,1705690446591,214.40062927,0.0002,2]
[312216504,1705690515998,150.0,0.000225,2]
[312216505,1705690567011,1635.59937073,0.000225,2]
[312216506,1705690567034,736.83188871,0.000225,2]
[312216507,1705690584036,150.0,0.000225,2]
[312216508,1705690602704,1113.16811129,0.00022408,2]
[312216509,1705690602725,886.83188871,0.00022408,2]
[312216510,1705690635323,285.29,0.00022371,2]
[312216511,1705690640585,229.55156758,0.00022354,2]
[312216513,1705690655940,-164.80447991,0.00034668,100]
[312216514,1705690655966,-151.24368251,0.00034668,60]
[312216515,1705690655990,-410.9848115,0.00034668,120]
[312216516,1705690656016,-1609.6463033,0.00034668,120]
[312216517,1705690656044,-275.18657981,0.00034668,30]
[312216518,1705690656069,-266.0,0.00034668,120]
[312216519,1705690656095,-450.91912129,0.00034668,120]
[312216520,1705690656121,-220.23367853,0.00034668,120]
[312216521,1705690656146,-1772.03137692,0.00034668,30]
[312216522,1705690656170,-201.6284867,0.00034668,120]
[312216523,1705690656195,-5000.0,0.00034668,120]
[312216524,1705690656220,-1539.64158344,0.00034668,120]
[312216525,1705690656244,-10027.74218409,0.00034668,30]
[312216526,1705690656270,-500.0,0.00034668,120]
[312216527,1705690656300,-10000.0,0.00034668,120]
[312216528,1705690656326,-211.6607731,0.00034668,120]
[312216529,1705690656350,-580.25448011,0.00034668,120]
[312216530,1705690656634,-334.36047481,0.00034668,120]
[312216531,1705690656659,-238.5607692,0.00034668,120]
[312216532,1705690656683,-197.60557823,0.00034668,30]
[312216533,1705690656708,-5587.62426315,0.00034668,120]
[312216534,1705690656731,-507019.14641578,0.00034668,120]
[312216535,1705690656754,-300.0,0.00034668,120]
[312216536,1705690656781,-316.0,0.00034668,120]
[312216537,1705690656804,-98151.09157529,0.00034668,32]
[312216538,1705690656828,-55441.90157126,0.00034668,120]
[312216539,1705690656853,-2453.77658422,0.00034668,30]
[312216540,1705690656875,-310.60535193,0.00034668,60]
[312216541,1705690656898,-219.37163307,0.00034668,60]
[312216542,1705690656919,-2354.9612548,0.00034668,120]
[312216543,1705690656943,-250.0,0.00034668,30]
[312216544,1705690656965,-250.0,0.00034668,30]
[312216545,1705690656987,-250.0,0.00034668,30]
[312216546,1705690657008,-250.0,0.00034668,30]
[312216547,1705690657033,-305.720084,0.00034668,30]
[312216548,1705690657056,-1971.008452,0.00034668,30]
[312216549,1705690659715,-607.11183125,0.0003,30]
[312216550,1705690659765,-151.0,0.00032734,30]
[312216551,1705690659796,-243.2982411,0.00033,34]
[312216552,1705690659829,-300.0,0.00034,35]
[312216553,1705690659854,-1921.8,0.000342,30]
[312216554,1705690659879,-7003.25859679,0.000345,30]
[312216555,1705690659907,-230.91739,0.00035,30]
[312216556,1705690659931,-500.0,0.00035,30]
[312216557,1705690659955,-504.15851662,0.00035,30]
[312216558,1705690659979,-300.0,0.00035,36]
[312216559,1705690660004,-1241.68338568,0.00035,30]
[312216560,1705690660040,-300.0,0.00036,37]
[312216561,1705690660064,-155.0,0.00036,30]
[312216562,1705690660087,-511.93505788,0.00036,30]
[312216563,1705690660124,-300.0,0.00037,38]
[312216564,1705690660152,-197.75095527,0.00037369,120]
[312216565,1705690660179,-14786.16195452,0.000378,31]
[312216566,1705690660204,-150.5,0.0003797,120]
[312216567,1705690660228,-150.5,0.0003797,120]
[312216568,1705690660255,-157.99,0.0003797,120]
[312216569,1705690660278,-150.5,0.0003798,120]
[312216570,1705690660302,-150.5,0.0003798,120]
[312216571,1705690660332,-150.5,0.0003798,120]
[312216572,1705690660356,-150.5,0.0003798,120]
[312216573,1705690660386,-150.5,0.0003799,60]
[312216574,1705690660410,-150.5,0.0003799,120]
[312216575,1705690660434,-150.5,0.0003799,120]
[312216576,1705690660462,-283.29,0.0003799,120]
[312216577,1705690660485,-158.78,0.0003799,120]
[312216578,1705690660510,-219.78,0.0003799,120]
[312216579,1705690660535,-153.79,0.0003799,120]
[312216580,1705690660557,-150.5,0.0003799,120]
[312216581,1705690660581,-150.5,0.0003799,120]
[312216582,1705690660606,-300.0,0.00038,39]
[312216583,1705690660632,-150.37387044,0.00038109,30]
[312216584,1705690660661,-500.0,0.00038356,30]
[312216585,1705690660685,-500.0,0.00038356,30]
[312216586,1705690660708,-1442.12,0.00038356,30]
[312216587,1705690660731,-1442.12,0.00038356,30]
[312216588,1705690660754,-1442.12,0.00038356,30]
[312216589,1705690660776,-1442.12,0.00038356,30]
[312216590,1705690660803,-1442.12,0.00038356,30]
[312216591,1705690660826,-1442.12,0.00038356,30]
[312216592,1705690660848,-1442.12,0.00038356,30]
[312216593,1705690660871,-1442.12,0.00038356,30]
[312216594,1705690660893,-1442.12,0.00038356,30]
[312216595,1705690660915,-1442.12,0.00038356,30]
[312216596,1705690660937,-1442.12,0.00038356,30]
[312216597,1705690660960,-1442.12,0.00038356,30]
[312216598,1705690660984,-1442.12,0.00038356,30]
[312216599,1705690661007,-1442.12,0.00038356,30]
[312216600,1705690661033,-1442.12,0.00038356,30]
[312216601,1705690661057,-1442.12,0.00038356,30]
[312216602,1705690661273,-1442.12,0.00038356,30]
[312216603,1705690661303,-1442.12,0.00038356,30]
[312216604,1705690661328,-1442.12,0.00038356,30]
[312216605,1705690661351,-1442.12,0.00038356,30]
[312216606,1705690661375,-1442.12,0.00038356,30]
[312216607,1705690661398,-1442.12,0.00038356,30]
[312216608,1705690661422,-1442.12,0.00038356,30]
[312216609,1705690661445,-1442.27683754,0.00038356,30]
[312216610,1705690661470,-233.1,0.0003837,120]
[312216611,1705690661496,-150.37387044,0.00038609,30]
[312216612,1705690661521,-559.83304787,0.0003863,30]
[312216613,1705690661546,-150.5,0.0003868,120]
[312216614,1705690661568,-150.5,0.0003869,120]
[312216615,1705690661592,-150.0,0.0003876,120]
[312216616,1705690661617,-14853.14798423,0.000388,30]
[312216617,1705690661642,-150.0,0.00038856,120]
[312216618,1705690661668,-417.75,0.00038937,60]
[312216619,1705690661691,-159.15,0.00038937,60]
[312216620,1705690661717,-300.0,0.00039,40]
[312216621,1705690661740,-158.94804944,0.00039,40]
[312216622,1705690661763,-4381.38,0.00039,30]
[312216623,1705690661788,-443.0,0.00039,30]
[312216624,1705690661810,-358.0781534,0.00039,33]
[312216625,1705690661831,-7003.0,0.00039,30]
[312216626,1705690661854,-299.99999906,0.00039,40]
[312216627,1705690661876,-3366.12696089,0.00039,120]
[312216628,1705690661898,-3000.0610085,0.00039,30]
[312216629,1705690661923,-150.37387044,0.00039109,30]
[312216630,1705690661947,-417.75,0.00039193,60]
[312216631,1705690661969,-191.32324363,0.00039234,31]
[312216632,1705690661994,-159.15,0.00039235,60]
[312216633,1705690662019,-150.0,0.00039378,120]
[312216634,1705690662044,-417.75,0.00039448,60]
[312216635,1705690662067,-5000.0,0.00039484,31]
[312216636,1705690662090,-5000.0,0.000395,30]
[312216637,1705690662113,-159.15,0.00039533,60]
[312216638,1705690662136,-1008.870644,0.000396,40]
[312216639,1705690662158,-150.37387044,0.00039609,30]
[312216640,1705690662184,-1000.0,0.000397,40]
[312216641,1705690662209,-417.75,0.00039704,60]
[312216642,1705690662235,-1000.0,0.000398,41]
[312216643,1705690662262,-159.15,0.00039831,60]
[312216644,1705690662288,-1189.91994271,0.000399,30]
[312216645,1705690662312,-1037.18382721,0.000399,30]
[312216646,1705690662336,-692.67736874,0.000399,30]
[312216647,1705690662358,-1000.0,0.000399,41]
[312216648,1705690662381,-417.75,0.00039959,60]
[312216649,1705690662404,-4308.78554576,0.00039995,30]
[312216650,1705690662430,-3230.64313048,0.0004,30]
[312216651,1705690662454,-155.0,0.0004,30]
[312216652,1705690662477,-767.2633602,0.0004,120]
[312216653,1705690662500,-1507.29014215,0.0004,30]
[312216654,1705690662524,-1309.76535604,0.0004,30]
[312216655,1705690662549,-2000.0,0.0004,120]
[312216656,1705690662572,-350.0,0.0004,120]
[312216657,1705690662597,-400.0,0.0004,120]
[312216658,1705690662621,-300.0,0.0004,41]
[312216659,1705690662645,-1169.58644021,0.0004,120]
[312216660,1705690662668,-1020.42283689,0.0004,30]
[312216661,1705690662694,-243.90962937,0.0004,30]
[312216662,1705690662718,-350.51405791,0.0004,30]
[312216663,1705690662741,-340.03438698,0.0004,30]
[312216664,1705690662765,-1098.34181103,0.0004,120]
[312216665,1705690662788,-1164.29744365,0.0004,30]
[312216666,1705690662811,-474.47226098,0.0004,30]
[312216667,1705690662832,-535.6328386,0.0004,31]
[312216668,1705690662854,-467.0,0.0004,30]
[312216669,1705690662875,-248.0,0.0004,30]
[312216670,1705690662896,-641.0,0.0004,60]
[312216671,1705690662919,-353.23644983,0.0004,30]
[312216672,1705690662942,-1853616.06583183,0.0004,90]
[312216673,1705690675444,-146383.93416817,0.0004,90]
[312216674,1705690675469,-1000.0,0.0004,60]
[312216675,1705690675493,-167.23380626,0.0004,30]
[312216676,1705690675520,-1051.83344133,0.0004,30]
[312216677,1705690675543,-197.50890397,0.0004,30]
[312216678,1705690675569,-3858.46462829,0.0004,30]
[312216679,1705690675592,-347.81662254,0.0004,30]
[312216680,1705690675615,-101483.71174207,0.0004,30]
[312216681,1705690675636,-1000.0,0.0004,30]
[312216682,1705690675659,-1000.0,0.0004,30]
[312216683,1705690675681,-1000.0,0.0004,30]
[312216684,1705690675703,-1000.0,0.0004,30]
[312216685,1705690675726,-1000.0,0.0004,30]
[312216686,1705690675748,-1000.0,0.0004,30]
[312216687,1705690675771,-1000.0,0.0004,30]
[312216688,1705690675793,-1000.0,0.0004,30]
[312216689,1705690675819,-1000.0,0.0004,30]
[312216690,1705690675841,-683.128479,0.0004,30]
[312216691,1705690675863,-10078.17919852,0.0004,50]
[312216692,1705690675885,-352.83440596,0.0004,120]
[312216693,1705690675906,-227.407499,0.0004,120]